[Event "Festival Groningen-A 2024"]
[Site "Groningen"]
[Date "2024.12.22"]
[Round "2.13"]
[White "Mareau, Timothe"]
[Black "Poetsch, Hagen"]
[Result "0-1"]
[ECO "B23"]
[WhiteElo "2168"]
[BlackElo "2491"]
[Annotator "TA"]
[PlyCount "72"]
[EventDate "2024.12.21"]
[EventType "swiss"]
[EventCountry "NED"]
[SourceTitle "playchess.com"]
[Source "ChessBase"]
[SourceQuality "1"]
[TimeControl "40/5400+30:1800+30"]

{[%evp 9,72,19,28,21,16,21,27,-2,0,-16,-14,-46,-32,-124,-137,-128,-60,-110,-101,-124,0,-64,-63,-109,56,20,86,87,81,55,148,138,1264,1238,1222,1221,1131,21,88,-124,-127,-128,-120,-120,-129,-213,-229,-317,-312,-316,-271,-318,-300,-384,-220,-646,-592,-692,-691,-1195,-1070,-1355,-1307,-29990,-29991]} 1. e4 {[%emt 0:00:08]} c5 {[%emt 0:00:04]} 2. Nc3 {[%emt 0:00:19]} a6 {[%emt 0:00:38]} 3. Nge2 {[%emt 0:00:40]} d6 {[%emt 0:01:01]} 4. g3 {[%emt 0:01:37]} g6 {[%emt 0:00:23]} 5. Bg2 {[%emt 0:00:23]} Bg7 {[%emt 0:00:05]} 6. O-O {[%emt 0:00:35]} Nc6 {[%emt 0:00:11]} 7. d3 {[%emt 0:00:40]} e6 {[%emt 0:04:20]} 8. f4 {[%emt 0:02:36] White has an edge.} Nge7 {[%emt 0:00:14]} 9. g4 {[%emt 0:14:41]} f5 {[%emt 0:06:16]} 10. Ng3 {[%emt 0:05:08]} O-O {[%emt 0:04:52]} 11. h4 {[%emt 0:01:25]} (11. g5 $15) 11... fxg4 $17 {[%emt 0:10:33]} 12. Qxg4 {[%emt 0:05:22]} Nd4 {[%emt 0:03:15]} (12... h5 $17 13. Qg5 Nd4) 13. h5 {[%emt 0:05:49]} (13. Rf2 $15) 13... Nxc2 {[%emt 0:01:19]} 14. Rb1 {[%emt 0:00:54] [#]} c4 {[%emt 0:02:23] Black is more active.} 15. hxg6 {[%emt 0:05:54]} (15. dxc4 $11 Qb6+ 16. Kh2) 15... hxg6 $15 {[%emt 0:04:32]} 16. f5 {[%emt 0:07:03]} cxd3 $2 {[%emt 0:21:24]} (16... exf5 17. exf5 Rf7 (17... Nxf5 18. Qxg6 Qh4 19. Nh5 $11) (17... Bxf5 18. Nxf5 Rxf5 19. Rxf5 $15) 18. Kh1 $15 (18. Qxc4 $2 Bd4+ 19. Rf2 Bxf5 $19) (18. dxc4 Qb6+ 19. Kh2 Bxc3 $19)) (16... Qe8 $17 17. f6 (17. fxe6 Rxf1+ 18. Nxf1 Nc6 $17) 17... Rxf6) 17. Bg5 $14 {[%emt 0:03:30]} Qb6+ {[%emt 0:03:04]} (17... exf5 $11 18. exf5 Qb6+ 19. Rf2 Bxf5 (19... gxf5 $2 20. Qh5 $18) 20. Qc4+ Rf7 (20... d5 $2 21. Bxd5+ Nxd5 22. Nxd5 $18) 21. Nxf5 (21. Bxe7 $2 Qxf2+ 22. Kxf2 Be6+ 23. Bf3 Bxc4 $19) 21... gxf5 (21... Nxf5 22. Bd5 $16)) 18. Kh1 $16 {[%emt 0:03:35]} Ne3 {[%emt 0:06:34]} 19. Qh4 {[%emt 0:03:05]} Nxf1 {[%emt 0:00:19]} ({Black should play} 19... exf5 $14 20. Bxe7 Rf7) 20. Rxf1 {[%emt 0:02:14]} Nc6 {[%emt 0:03:22][%mdl 8192]} (20... Qd4 $16) 21. fxg6 $18 {[%emt 0:12:38][%csl Gg6][%cal Rh4h7]} Rxf1+ {[%emt 0:00:07]} 22. Bxf1 {[%emt 0:00:04] And now Qh7+ would win.} Qf2 {[%emt 0:03:08] [#]} 23. Qh7+ $2 {[%emt 0:06:14]} (23. e5 $1 $18 {Threatening mate with Bf6.} Nxe5 24. Qh7+ Kf8 25. Nce4 Qf3+ 26. Bg2 Qd1+ 27. Kh2 Ng4+ 28. Kh3) 23... Kf8 $16 {[%emt 0:00:05] [#]} 24. Bh6 $2 {[%emt 0:03:17]} (24. e5 $1 $16 {Hoping for Bf6.} Qf3+ (24... Qxg3 $2 25. Bf6 $18) (24... Nxe5 $2 25. Nce4 $18) 25. Bg2 Qxg3 26. Bf6 Qe1+ (26... Ke8 27. Qg8+ Kd7 28. Qxg7+ Ke8 29. Qf7#) 27. Kh2 Qxe5+ 28. Bxe5 Nxe5 29. Qh4) 24... Bxh6 $17 {[%emt 0:06:46]} 25. Qxh6+ {[%emt 0:00:03]} Ke8 {[%emt 0:00:27]} 26. g7 {[%emt 0:05:05]} Ne7 {[%emt 0:00:27]} (26... Qxg3 $2 27. Qh8+ Kd7 28. g8=Q (28. g8=R Qf4 $11) 28... Qxg8 29. Qxg8 $18) 27. Qh8+ {[%emt 0:02:11]} (27. Qg5 $17) 27... Kd7 $19 {[%emt 0:00:05]} 28. g8=Q {[%emt 0:00:05]} Nxg8 {[%emt 0:00:06]} 29. Qxg8 {[%emt 0:00:07]} b5 {[%emt 0:04:52]} (29... Qxb2 30. Qg7+ Kc6 31. Bxd3 $15) 30. Bh3 {[%emt 0:00:58]} Kc7 $1 {[%emt 0:02:50] ...b4 is the strong threat.} (30... Qxb2 $2 {is the wrong capture.} 31. Qxe6+ (31. Bxe6+ Kc7 $18) 31... Kc6 32. Qd5+ Kb6 33. Qxd6+ (33. Qxa8 Qc1+ 34. Bf1 Qh6+ 35. Kg2 Qd2+ 36. Be2 Qxc3 $16) 33... Kb7 34. Qd5+ Kb6 35. Qxa8 $18) 31. Qg7+ {[%emt 0:03:12]} Kb6 {[%emt 0:01:32]} (31... Kb8 $142 32. Nf1 Qxb2) 32. a4 $2 {[%emt 0:04:09]} (32. Nf1) 32... Ra7 {[%emt 0:03:23]} (32... Qxb2 $2 {too greedy.} 33. Nd5+ exd5 34. Qxb2 $18) (32... d2 $2 33. a5+ Kc6 34. Qg4 $19) 33. Qg8 {[%emt 0:00:22]} Rc7 {[%emt 0:00:28]} 34. Qg5 {[%emt 0:02:56]} b4 {[%emt 0:02:34]} 35. a5+ {[%emt 0:00:29]} Kb7 {[%emt 0:00:35]} 36. Na4 {[%emt 0:00:29]} d2 {[%emt 0:00:21] Weighted Error Value: White=1.00/Black=0.35.  Loses game:     	---       	Black=1      Mistake:       	White=5     	Black=6      Inaccurate:     	White=4     	---        OK:         	White=5     	Black=4      Best:        	White=3     	Black=6      Strong:       	---       	Black=1} 0-1

[Event "Festival Groningen-A 2024"]
[Site "Groningen"]
[Date "2024.12.22"]
[Round "2.14"]
[White "Mitusov, Semen"]
[Black "Mostertman, Milan"]
[Result "1-0"]
[ECO "C11"]
[WhiteElo "2465"]
[BlackElo "2244"]
[Annotator "TA"]
[PlyCount "143"]
[EventDate "2024.12.21"]
[EventType "swiss"]
[EventCountry "NED"]
[SourceTitle "playchess.com"]
[Source "ChessBase"]
[SourceQuality "1"]
[TimeControl "40/5400+30:1800+30"]

{[%evp 37,142,59,158,151,157,146,144,145,137,143,320,301,292,311,269,216,202,218,212,221,195,107,125,97,324,158,169,136,149,118,114,115,173,139,126,142,122,78,90,114,96,73,179,89,161,69,159,168,175,24,10,8,46,51,50,0,0,0,0,10,43,43,45,45,80,5,8,0,0,0,0,0,0,0,3,6,7,8,756,770,1053,661,1696,1197,1865,1668,1279,1812,1609,1516,29987,29988,29989,29990,29990,29991,29991,29992,29992,29991,29991,29992,29992,29993,29998,29999,29999]} 1. e4 {[%emt 0:00:03]} e6 {[%emt 0:00:06]} 2. d4 {[%emt 0:01:07]} d5 {[%emt 0:00:08]} 3. Nc3 {[%emt 0:01:19]} Nf6 {[%emt 0:00:07]} 4. e5 {[%emt 0:02:22]} Nfd7 {[%emt 0:00:06]} 5. f4 {[%emt 0:00:18]} c5 {[%emt 0:00:10]} 6. Nf3 {[%emt 0:00:05]} Nc6 {[%emt 0:00:12]} 7. Be3 {[%emt 0:00:05]} cxd4 {[%emt 0:00:56]} 8. Nxd4 {[%emt 0:00:14]} Qb6 {[%emt 0:00:06]} 9. Qd2 {[%emt 0:03:36]} Qxb2 {[%emt 0:00:09]} 10. Rb1 {[%emt 0:00:07]} Qa3 {[%emt 0:00:04]} 11. Bb5 {[%emt 0:00:10]} Nxd4 {[%emt 0:00:19] C11: French: Classical System: 4 e5 and 4 Bg5 dxe4.} 12. Bxd4 {[%emt 0:00:05]} a6 {[%emt 0:00:03]} 13. Bxd7+ {[%emt 0:00:15]} Bxd7 {[%emt 0:00:04]} 14. Rb3 {[%emt 0:00:06]} Qe7 {[%emt 0:00:38]} 15. Rxb7 {[%emt 0:00:06]} Qd8 {[%emt 0:00:21] Recently 15...Qh4+ got a lot of attention.} 16. Bb6 {[%emt 0:11:59]} Qh4+ {[%emt 0:00:14]} 17. Bf2 {[%emt 0:10:56]} Qd8 {[%emt 0:00:57]} 18. Bb6 {[%emt 0:07:27]} Qh4+ {[%emt 0:00:08]} 19. g3 {[%emt 0:00:03]} Qg4 {[%emt 0:00:07]} (19... Qh3 $14) 20. O-O $1 $16 {[%emt 0:09:39]} Rc8 {[%emt 0:05:03]} 21. Nd1 $1 {[%emt 0:05:59]} Qf5 {[%emt 0:09:02]} 22. Ne3 {[%emt 0:06:52]} Qe4 {[%emt 0:02:23]} 23. Bd4 $1 {[%emt 0:02:08]} Bc5 $146 {[%emt 0:07:19]} (23... Be7 $16) ({Predecessor:} 23... Be7 24. Re1 Bd8 25. f5 exf5 26. Nc4 Rxc4 27. Rxe4 fxe4 28. e6 Bxe6 29. Bxg7 Rg8 30. Qh6 Rxg7 31. Qxg7 {1-0 Bormida,A (2397)-Gubo,J (2073) CP-2015-Q-00001}) 24. Bxc5 $18 {[%emt 0:04:10]} Rxc5 {[%emt 0:00:27]} 25. Rb4 $1 {[%emt 0:06:58]} Qg6 {[%emt 0:02:12]} 26. f5 {[%emt 0:07:09]} Qg5 {[%emt 0:08:27]} 27. Rg4 {[%emt 0:06:33]} Qh6 {[%emt 0:00:08]} 28. f6 {[%emt 0:01:18]} g6 {[%emt 0:04:00]} 29. Qd4 {[%emt 0:00:57]} (29. Rf2 $18) 29... Rc8 {[%emt 0:01:21]} 30. c4 {[%emt 0:04:04]} Qf8 $2 {[%emt 0:09:55]} (30... O-O $16) 31. Rgf4 {[%emt 0:06:15]} (31. cxd5 $18 {is the precise move to win. Nc4 is the strong threat.} exd5 32. Nxd5) 31... g5 {[%emt 0:03:45]} 32. Rg4 {[%emt 0:00:54]} Qc5 {[%emt 0:06:34]} 33. Rd1 {[%emt 0:00:59]} (33. cxd5 exd5 34. Qxc5 Rxc5 35. Rxg5 d4 $16) 33... h6 {[%emt 0:00:13]} 34. Kf2 {[%emt 0:01:44]} (34. cxd5 $6 exd5 35. Qxc5 Rxc5 $11) 34... Ba4 {[%emt 0:09:07]} (34... Qxd4 $16 {was necessary.} 35. Rgxd4 O-O) 35. Rd2 {[%emt 0:00:00]} h5 {[%emt 0:00:18]} 36. Qxc5 {[%emt 0:01:51]} Rxc5 {[%emt 0:00:01]} 37. Rgd4 {[%emt 0:00:01]} O-O {[%emt 0:05:31]} 38. cxd5 {[%emt 0:00:12]} Bd7 {[%emt 0:00:01]} 39. h4 {[%emt 0:01:13]} g4 {[%emt 0:00:01]} (39... Kh7 $16 {is a better defense.}) 40. Re4 {[%emt 0:00:38]} (40. Rb4 $18 {has better winning chances.}) 40... exd5 {[%emt 0:03:38]} (40... Kh7 $16) 41. Nxd5 {[%emt 0:05:10]} (41. Rxd5 $18 Rc7 42. e6 fxe6 43. Rg5+ (43. Rxh5 Rxf6+ 44. Ke1 Kf8 $16) 43... Kh7 44. Rxh5+ Kg6 45. Rg5+ (45. Rxg4+ $2 Kxh5 46. Rg5+ Kh6 $19) 45... Kxf6 46. a3 (46. Nxg4+ Ke7+ 47. Rf4 Rxf4+ 48. gxf4 Rc2+ 49. Kf3 Bc6+ 50. Ke3 Bd5 $14) (46. Rgxg4 e5 $16) (46. Rexg4 Ke7+ 47. Rf4 Rxf4+ 48. gxf4 Kf8 $16)) 41... Rxd5 {[%emt 0:15:54]} (41... Kh7 $1 $14) 42. Rxd5 $16 {[%emt 0:00:01]} Bc6 {[%emt 0:00:05] [#]} 43. Rdd4 $2 {[%emt 0:05:21]} ({Only move:} 43. Red4 $1 $18 Bxd5 44. Rxd5) 43... Bxe4 $11 {[%emt 0:00:09]} 44. Rxe4 {[%emt 0:00:02]} Re8 {[%emt 0:06:30]} 45. Ke3 {[%emt 0:01:24]} Kh7 $1 {[%emt 0:00:09]} 46. Kd4 {[%emt 0:10:03]} (46. a4 $14) 46... Kg6 $11 {[%emt 0:00:17]} 47. Rf4 {[%emt 0:00:06]} Rd8+ {[%emt 0:10:56]} 48. Kc5 {[%emt 0:02:01]} Re8 {[%emt 0:08:59]} (48... Rd3 $2 49. e6 Rc3+ 50. Kd4 $18) 49. Kd6 {[%emt 0:00:02]} Re6+ {[%emt 0:00:08]} 50. Kd5 {[%emt 0:00:01]} a5 {[%emt 0:02:40]} 51. Rf2 {[%emt 0:03:43]} (51. a4 $16) 51... a4 $11 {[%emt 0:04:08]} 52. a3 {[%emt 0:01:13]} Rb6 {[%emt 0:00:30]} 53. Kd4 {[%emt 0:00:23]} Rb8 {[%emt 0:02:46]} ({Don't go for} 53... Rb3 $2 54. e6 Rf3 55. e7 Rxf2 56. e8=Q $18 (56. e8=R $2 {too greedy.} Rf3 $19)) 54. Rf4 {[%emt 0:00:42]} Rb6 {[%emt 0:01:51]} 55. Kc5 {[%emt 0:01:54]} Re6 {[%emt 0:01:22]} 56. Kd5 {[%emt 0:00:25]} Ra6 {[%emt 0:00:00]} 57. Ke4 {[%emt 0:00:15]} Rb6 $2 {[%emt 0:00:35][%mdl 8192]} (57... Rc6 $11) 58. Rf5 $18 {[%emt 0:01:00]} Rb3 {[%emt 0:01:58]} 59. Rg5+ {[%emt 0:00:01]} Kh6 {[%emt 0:00:03]} 60. Rg8 {[%emt 0:01:44]} ({Not} 60. Rg7 Re3+ 61. Kxe3 $11) 60... Rb1 {[%emt 0:02:00]} 61. Kd4 {[%emt 0:01:29]} Re1 {[%emt 0:00:16] [#]} 62. Kd5 $1 {[%emt 0:00:52]} Re2 {[%emt 0:02:14]} 63. Kd6 {[%emt 0:00:27]} Re3 {[%emt 0:00:02]} 64. Ke7 {[%emt 0:00:27]} Kh7 {[%emt 0:00:20]} 65. Kxf7 {[%emt 0:00:12]} Rxe5 {[%emt 0:00:05]} 66. Rg5 {[%emt 0:00:11]} Rxg5 {[%emt 0:00:16]} 67. hxg5 {[%emt 0:00:02]} h4 {[%emt 0:00:08]} 68. gxh4 {[%emt 0:00:29]} g3 {[%emt 0:00:02]} 69. g6+ {[%emt 0:00:04]} Kh6 {[%emt 0:00:02]} 70. g7 {[%emt 0:00:03]} g2 {[%emt 0:00:03]} 71. g8=Q {[%emt 0:00:04]} g1=Q {[%emt 0:00:03]} 72. Qh8# {[%emt 0:00:10]} 1-0

[Event "Festival Groningen-A 2024"]
[Site "Groningen"]
[Date "2024.12.22"]
[Round "2.15"]
[White "De Boer, Eelke"]
[Black "Sharma, Dinesh K."]
[Result "1-0"]
[ECO "B90"]
[WhiteElo "2426"]
[BlackElo "2200"]
[Annotator "TA"]
[PlyCount "79"]
[EventDate "2024.12.21"]
[EventType "swiss"]
[EventCountry "NED"]
[SourceTitle "playchess.com"]
[Source "ChessBase"]
[SourceQuality "1"]
[TimeControl "40/5400+30:1800+30"]

{[%evp 12,79,12,4,23,19,45,34,31,39,33,47,41,40,44,50,52,59,55,47,48,29,66,24,51,48,121,120,113,103,126,114,154,133,112,125,110,106,141,147,135,110,109,108,127,122,174,120,129,123,356,353,308,221,371,352,350,248,1207,1204,1165,1148,1029,0,1003,937,29985,29986,29985,29986]} 1. e4 {[%emt 0:00:04]} c5 {[%emt 0:00:09]} 2. Nf3 {[%emt 0:00:07]} d6 {[%emt 0:00:12]} 3. d4 {[%emt 0:00:09]} cxd4 {[%emt 0:00:07]} 4. Nxd4 {[%emt 0:00:10]} Nf6 {[%emt 0:00:08]} 5. Nc3 {[%emt 0:00:14]} a6 {[%emt 0:00:24]} 6. Bd3 {[%emt 0:00:12]} e5 {[%emt 0:00:55]} 7. Nde2 {[%emt 0:00:08]} Nbd7 {[%emt 0:03:51]} 8. O-O {[%emt 0:01:35]} Nc5 {[%emt 0:06:33]} 9. Bg5 {[%emt 0:00:56]} Be7 {[%emt 0:01:16][%cal Of6e4,Bf8e7,Be7f6,Bf6g5][%mdl 32] White is slightly better.} 10. Bxf6 {[%emt 0:06:42]} Bxf6 {[%emt 0:00:30]} 11. Nd5 {[%emt 0:00:05]} Be6 {[%emt 0:06:35] And now ...Bxd5 would win.} 12. Nec3 {[%emt 0:00:09]} O-O {[%emt 0:03:59]} 13. a4 {[%emt 0:02:22][%cal Ba2a4,Ba4a5][%mdl 32]} Nd7 {[%emt 0:08:04]} 14. a5 {[%emt 0:07:19]} Bg5 {[%emt 0:04:08]} 15. Bc4 {[%emt 0:06:02][%cal Bd3c4,Bc4b3,Bb3d5][%mdl 32]} Rc8 {[%emt 0:08:10]} 16. Qe2 {[%emt 0:00:36]} Kh8 {[%emt 0:06:02][%cal Og5d2]} 17. b4 {[%emt 0:01:46]} Rc6 {[%emt 0:06:48]} 18. Bb3 {[%emt 0:07:34]} f5 {[%emt 0:16:59]} (18... Qc8 $14) 19. exf5 $16 {[%emt 0:01:24]} Bxf5 {[%emt 0:01:10]} 20. Ne4 {[%emt 0:01:19] Excellent horsemanship.} Bh6 {[%emt 0:04:16]} 21. Rad1 {[%emt 0:06:03]} Nf6 {[%emt 0:04:11]} 22. Ndxf6 {[%emt 0:13:23]} gxf6 {[%emt 0:00:58]} 23. Bd5 {[%emt 0:00:08]} Rc7 {[%emt 0:01:01]} 24. Qh5 {[%emt 0:00:09] White is more active.} Bxe4 {[%emt 0:01:41]} 25. Bxe4 {[%emt 0:00:11]} f5 {[%emt 0:00:05]} 26. Qxh6 {[%emt 0:04:50]} Rf6 {[%emt 0:00:03]} 27. Qe3 {[%emt 0:00:20]} fxe4 {[%emt 0:00:06]} 28. Qxe4 {[%emt 0:00:09]} Qf8 {[%emt 0:02:56]} (28... Rf4 $16 29. Qxe5+ dxe5 30. Rxd8+ Kg7) 29. g3 {[%emt 0:02:03]} (29. Rd5 $18) 29... Qf7 {[%emt 0:00:56]} 30. Rd5 {[%emt 0:08:38]} Rc3 $2 {[%emt 0:04:13] [#]} (30... Qg6 $16 {was necessary.} 31. Qxg6 hxg6) 31. Rfd1 $1 $18 {[%emt 0:04:20]} Rc6 {[%emt 0:01:17]} 32. R1d2 {[%emt 0:00:55]} Qc7 {[%emt 0:00:03]} (32... Qg6 $142 33. Qe2 b5) 33. f4 {[%emt 0:08:06][%cal Rf4e5]} Rc4 {[%emt 0:03:10]} 34. Qe2 {[%emt 0:00:08]} exf4 {[%emt 0:05:14]} (34... e4 35. R5d4 Rxd4 36. Rxd4 Rxf4) 35. Qe8+ {[%emt 0:00:30]} Kg7 {[%emt 0:00:01]} 36. Rg5+ {[%emt 0:00:09]} Rg6 {[%emt 0:00:02]} 37. Rxg6+ {[%emt 0:00:12]} hxg6 {[%emt 0:00:04]} 38. Re2 {[%emt 0:00:10]} Qc8 {[%emt 0:00:18] [#]} 39. Qe7+ $1 {[%emt 0:01:33]} Kg8 {[%emt 0:00:14]} 40. Re6 {[%emt 0:00:51] Weighted Error Value: White=0.34/Black=0.51.  Loses game:     	---       	Black=1      Mistake:       	White=1     	Black=4      Inaccurate:     	White=1     	Black=6      OK:         	White=13    	Black=8      Best:        	White=2     	Black=2      Strong:       	White=1     	---} 1-0

[Event "Festival Groningen-A 2024"]
[Site "Groningen"]
[Date "2024.12.22"]
[Round "2.16"]
[White "Wempe, Joost"]
[Black "Palchuk, Andrii"]
[Result "0-1"]
[ECO "A49"]
[WhiteElo "2233"]
[BlackElo "2372"]
[Annotator "TA"]
[PlyCount "40"]
[EventDate "2024.12.21"]
[EventType "swiss"]
[EventCountry "NED"]
[SourceTitle "playchess.com"]
[Source "ChessBase"]
[SourceQuality "1"]
[TimeControl "40/5400+30:1800+30"]

{[%evp 14,40,0,0,50,-64,-45,-167,-174,-328,-321,-327,-266,-381,-395,-496,-475,-550,-549,-594,-595,-587,-588,-577,-585,-709,-697,-691,-637]} 1. d4 {[%emt 0:00:02]} g6 {[%emt 0:11:33]} 2. Nf3 {[%emt 0:00:24]} Bg7 {[%emt 0:00:09]} 3. g3 {[%emt 0:00:41]} Nf6 {[%emt 0:00:08]} 4. Bg2 {[%emt 0:00:05]} O-O {[%emt 0:00:13]} 5. O-O {[%emt 0:00:05]} d6 {[%emt 0:00:05]} 6. b3 {[%emt 0:00:08]} e5 {[%emt 0:00:06]} 7. dxe5 {[%emt 0:00:20]} dxe5 {[%emt 0:00:05]} 8. Ba3 {[%emt 0:09:21]} e4 {[%emt 0:00:06]} 9. Nd4 {[%emt 0:04:40]} ({White should try} 9. Bxf8 $14 Qxf8 10. Nd4) 9... Re8 $15 {[%emt 0:01:19]} 10. c4 {[%emt 0:00:27]} (10. c3 $15) 10... e3 $19 {[%emt 0:04:04]} 11. Nc3 $2 {[%emt 0:00:18]} (11. fxe3 Ng4 (11... Rxe3 12. Nc3 $11) 12. Rxf7 Bxd4 (12... Kxf7 13. Bd5+ Kf6 14. Qf1+ Bf5 15. Bb2 $16) 13. Bd5 Qxd5 (13... Bxa1 14. Qf1 $11) (13... Bxe3+ 14. Kg2 $17) 14. cxd5 Bxe3+ (14... Bxa1 15. Re7 $11) 15. Kg2 Kxf7 16. d6) 11... exf2+ {[%emt 0:09:42]} 12. Kh1 {[%emt 0:00:04]} c6 {[%emt 0:00:08] Hoping for ...Ng4.} 13. Nc2 {[%emt 0:39:27]} (13. Nf3 {is a better defense.}) 13... Qa5 {[%emt 0:05:27]} 14. Qd2 {[%emt 0:25:34]} Rd8 {[%emt 0:10:05]} 15. Bd6 {[%emt 0:06:52]} Ng4 {[%emt 0:01:08]} ({Weaker is} 15... Rxd6 16. Qxd6 Na6 (16... Qxc3 $2 {perishes.} 17. Qd8+ Bf8 18. Qxc8 $18) 17. b4 $15) 16. b4 {[%emt 0:02:24]} Qh5 {[%emt 0:00:07][%csl Gg4][%cal Rh5h2]} 17. h4 {[%emt 0:00:23]} Bxc3 {[%emt 0:15:38]} 18. Qxc3 {[%emt 0:00:05]} Rxd6 {[%emt 0:00:04]} 19. Rad1 {[%emt 0:00:09]} Rxd1 {[%emt 0:00:55]} 20. Rxd1 {[%emt 0:00:06]} Nd7 {[%emt 0:00:03]} 0-1

[Event "Festival Groningen-A 2024"]
[Site "Groningen"]
[Date "2024.12.22"]
[Round "2.17"]
[White "Slagboom, Leandro"]
[Black "Grooten, Herman"]
[Result "1-0"]
[ECO "B40"]
[WhiteElo "2370"]
[BlackElo "2183"]
[Annotator "TA"]
[PlyCount "93"]
[EventDate "2024.12.21"]
[EventType "swiss"]
[EventCountry "NED"]
[SourceTitle "playchess.com"]
[Source "ChessBase"]
[SourceQuality "1"]
[TimeControl "40/5400+30:1800+30"]

{[%evp 9,93,-13,0,4,12,4,16,6,18,-8,-8,0,0,-29,10,-66,0,-15,-24,-31,-60,-76,-89,-100,-70,-93,-102,-233,-193,-200,-155,-153,-174,-164,-153,-154,-105,-127,-100,-102,-97,-162,-151,-181,-173,-228,-217,-189,-190,-221,-79,-122,0,0,0,0,180,177,177,202,171,170,224,219,229,138,141,143,260,174,396,401,559,531,956,1065,1062,388,1035,1030,29984,29985,29985,29986,29996,29997]} 1. e4 {[%emt 0:00:03]} c5 {[%emt 0:00:11]} 2. Nf3 {[%emt 0:00:07]} e6 {[%emt 0:00:08]} 3. c3 {[%emt 0:00:21]} Nf6 {[%emt 0:00:48]} 4. Bd3 {[%emt 0:00:08]} d5 {[%emt 0:02:33]} 5. e5 {[%emt 0:00:16]} Nfd7 {[%emt 0:00:15]} 6. Bc2 {[%emt 0:00:21]} Nc6 {[%emt 0:06:41]} 7. d4 {[%emt 0:00:13]} Be7 {[%emt 0:00:50]} 8. a3 {[%emt 0:08:57]} a5 {[%emt 0:02:18]} 9. h4 {[%emt 0:05:43]} f6 {[%emt 0:13:16]} 10. exf6 {[%emt 0:00:27]} Nxf6 {[%emt 0:00:49]} 11. h5 {[%emt 0:02:05]} Qc7 {[%emt 0:01:12]} 12. Qe2 {[%emt 0:11:34]} (12. a4 $11) 12... Bd7 {[%emt 0:02:13]} (12... O-O $15) 13. h6 {[%emt 0:12:38]} g6 {[%emt 0:00:28]} 14. Bg5 {[%emt 0:03:57]} O-O {[%emt 0:09:18]} 15. Nbd2 {[%emt 0:03:58]} cxd4 {[%emt 0:05:13]} 16. cxd4 {[%emt 0:01:12]} Bd6 {[%emt 0:03:32]} 17. O-O {[%emt 0:07:41]} Ng4 {[%emt 0:06:28][%cal Od6c5]} 18. Qd3 {[%emt 0:05:22]} (18. Rac1 $17) 18... Bh2+ {[%emt 0:01:24]} 19. Kh1 {[%emt 0:00:07]} Bf4 {[%emt 0:00:07]} 20. Bxf4 {[%emt 0:07:02]} Qxf4 {[%emt 0:05:01]} 21. g3 {[%emt 0:00:05]} Qxh6+ {[%emt 0:00:32]} 22. Kg2 {[%emt 0:00:05]} Qg7 {[%emt 0:00:58]} (22... Rf6 $142 23. Rae1 Raf8) 23. Rae1 $17 {[%emt 0:01:33]} Rac8 {[%emt 0:06:43]} 24. Ba4 {[%emt 0:01:54]} Rf5 {[%emt 0:03:12]} 25. Bxc6 {[%emt 0:05:33]} (25. Qb5 $17) 25... bxc6 $19 {[%emt 0:01:35]} (25... Bxc6 $6 26. Rxe6 Bd7 27. Re2 $11) (25... Rxc6 26. Rc1 $15) 26. Nh4 {[%emt 0:01:44]} Rh5 {[%emt 0:00:58]} 27. f4 {[%emt 0:02:26]} (27. Rh1 $142) 27... c5 {[%emt 0:04:16]} 28. Ndf3 {[%emt 0:01:51]} Rb8 {[%emt 0:00:47]} 29. Qc3 {[%emt 0:02:04]} c4 {[%emt 0:05:12]} (29... cxd4 $19 {has better winning chances.} 30. Nxd4 h6) 30. Qxa5 $17 {[%emt 0:03:52] [#]} Rxb2+ {[%emt 0:01:32]} ({Better is} 30... h6 $1 $17 {[%cal Og6g5] ...g5! is the strong threat.} 31. Qc7 Rxb2+ 32. Kg1 Kh7) 31. Kg1 $11 {[%emt 0:00:42]} Qe7 {[%emt 0:06:23][%cal Og4h2] Repels Qd8+} 32. Rb1 {[%emt 0:03:19]} Rb3 $2 {[%emt 0:02:11]} (32... Ra2 $1 $11 {and Black is okay.}) 33. Rxb3 $18 {[%emt 0:00:49]} cxb3 {[%emt 0:00:04]} 34. Rb1 {[%emt 0:00:15]} g5 {[%emt 0:03:52]} 35. Nxg5 {[%emt 0:04:46]} (35. fxg5 Qf8 $16) 35... Rxg5 {[%emt 0:00:12]} (35... Qf8) 36. fxg5 {[%emt 0:00:05]} Qxg5 {[%emt 0:00:09]} 37. Qe1 {[%emt 0:00:46]} (37. Rxb3 Qc1+ 38. Kg2 Qc2+ 39. Kh3 Nf2+ (39... Qxb3 $2 40. Qd8+ Kf7 41. Qxd7+ Kf6 42. Qd8+ Kf7 43. Qc7+ Ke8 44. Kxg4 $18) 40. Kh2 Ng4+ 41. Kh3 Nf2+ 42. Kg2 Ng4+ (42... Qxb3 $2 43. Qd8+ Kf7 44. Qxd7+ Kf6 45. Qd8+ Kf7 46. Qc7+ Ke8 47. Kxf2 $18) 43. Kh3 $11) 37... Qf6 {[%emt 0:00:47]} 38. Qd2 {[%emt 0:00:38]} ({But not} 38. Rxb3 Qxd4+ 39. Kg2 Qc5 $16) 38... e5 {[%emt 0:02:53]} (38... Bb5 $16 39. Qf4 (39. Rxb3 $2 Qf1#) 39... Qxf4 40. gxf4 Bc4) 39. Rf1 {[%emt 0:02:29]} Qd8 $2 {[%emt 0:01:10]} (39... Qe7 {is a better defense.} 40. Rf3 b2 41. Qxb2 exd4) 40. dxe5 {[%emt 0:01:46][%cal Bd4e5,Be5e6,Be6d7][%mdl 32]} Qb6+ {[%emt 0:00:54]} 41. Kh1 {[%emt 0:31:06]} Ne3 {[%emt 0:30:20]} 42. Qf2 {[%emt 0:00:00]} Qh6 {[%emt 0:00:00] Against Qf8+} 43. Qf7+ {[%emt 0:00:00]} Kh8 {[%emt 0:00:00] [#]} 44. e6 $1 {[%emt 0:00:00]} Nxf1 {[%emt 0:00:00]} (44... Bxe6 45. Qe8+) 45. exd7 {[%emt 0:00:00]} Nxg3+ {[%emt 0:00:00]} 46. Kg2 {[%emt 0:00:00]} Qd2+ {[%emt 0:00:00]} 47. Kh3 {[%emt 0:00:00]} 1-0